bitfinex-derivatives/quotes_ETHF0:USTF0_20260203
["timestamp","ask_amount","ask_price","bid_price","bid_amount"]
[1770108135610,9.36193818,2326.1,2325.5,1.77613409]
[1770108135914,0.07093818,2325.8,2324.9,6.56590111]
[1770108136410,4.53823939,2325.7,2325.0,2.51111409]
[1770108136817,0.07093818,2325.6,2324.9,0.21524]
[1770108137017,9.292,2325.5,2324.9,2.72635409]
[1770108137218,14.05723772,2325.5,2324.9,2.72635409]
[1770108138617,9.292,2325.5,2324.9,2.72635409]
[1770108143219,2.57304863,2326.0,2324.9,2.72635409]
[1770108143422,9.309,2325.8,2325.0,2.54701532]
[1770108143621,13.96625609,2325.8,2325.0,2.54701532]
[1770108143916,9.309,2325.8,2325.0,3.83954702]
[1770108144220,9.309,2325.8,2325.1,2.76223532]
[1770108144522,2.57304863,2326.3,2325.1,2.76223532]
[1770108144721,9.311,2326.2,2325.1,2.76223532]
[1770108144921,4.69929222,2326.1,2325.1,2.76223532]
[1770108145122,14.01029222,2326.2,2325.1,2.76223532]
[1770108145420,9.311,2326.2,2325.1,2.76223532]
[1770108145621,4.79506872,2326.1,2325.1,2.76223532]
[1770108146421,4.79506872,2326.1,2325.2,1.72704355]
[1770108146722,4.79506872,2326.1,2325.2,4.27405887]
[1770108147222,4.79506872,2326.1,2325.3,2.54701532]
[1770108149822,1.72704355,2325.7,2325.0,3.83954702]
[1770108150128,1.72704355,2325.5,2324.6,2.54701532]
[1770108150526,4.95726354,2325.4,2324.6,2.54701532]
[1770108151027,4.95726354,2325.5,2324.6,2.55222803]
[1770108151225,11.89204863,2325.6,2324.6,2.55222803]
[1770108151526,4.62195093,2325.5,2324.6,2.55222803]
[1770108152529,9.321,2325.4,2324.6,2.55222803]
[1770108152834,4.88154829,2325.3,2324.6,2.76749803]
[1770108153133,9.321,2325.3,2324.6,2.76749803]
[1770108153533,4.83417437,2325.2,2324.6,2.76749803]
[1770108153728,4.83919406,2325.2,2324.6,2.76749803]
[1770108153926,2.57304863,2325.7,2324.8,2.54701532]
[1770108154128,9.325,2325.9,2325.0,2.54701532]
[1770108154628,4.85316216,2325.8,2325.0,2.76224532]
[1770108154934,0.00471673,2325.8,2325.0,2.76224532]
[1770108155929,4.96173789,2325.7,2325.0,2.76224532]
[1770108159534,0.00471673,2325.8,2325.0,2.76224532]
[1770108164442,0.00471673,2325.8,2325.3,2.54538146]
[1770108174241,1e-08,2325.8,2325.4,1.72719575]
[1770108174444,9.345,2326.1,2325.5,2.546823]
[1770108174745,14.04954427,2326.1,2325.5,2.546823]
[1770108175344,14.0536882,2326.1,2325.5,2.546823]
[1770108175642,14.0536882,2326.1,2325.3,2.546823]
[1770108175643,18.35372362,2326.1,2325.3,2.546823]
[1770108177544,1.72719575,2325.9,2325.3,2.546823]
[1770108177744,1.7969087,2325.4,2324.7,0.21526]
[1770108178041,13.98353013,2325.3,2324.7,0.21526]
[1770108178246,13.98353013,2325.3,2324.6,2.51717923]
[1770108179041,13.98353013,2325.3,2324.6,1.73240846]
[1770108179350,2.33031058,2325.9,2325.1,2.35089087]
[1770108179547,9.393,2325.8,2325.1,2.35089087]
[1770108179747,14.21379664,2325.8,2325.1,2.35089087]
[1770108180947,14.21379664,2325.8,2325.3,2.35089087]
[1770108181142,40.50884549,2326.1,2325.2,1.72719575]
[1770108181143,0.00414393,2326.1,2325.6,1.72719575]
[1770108181344,14.30415025,2326.4,2325.7,2.35089087]
[1770108181742,4.80620108,2326.2,2325.7,2.35089087]
[1770108181942,4.80620108,2326.3,2325.7,2.35089087]
[1770108182147,9.401,2326.4,2325.7,2.35089087]
[1770108182348,4.05750633,2326.3,2325.6,0.21517]
[1770108182648,8.60336293,2326.3,2325.6,0.21517]
[1770108183149,6.87616718,2326.3,2325.6,0.21517]
[1770108185456,4.5458566,2326.3,2325.7,2.35089087]
[1770108185651,6.87616718,2326.3,2325.6,1.94236575]
[1770108185952,6.87616718,2326.3,2325.6,2.56606087]
[1770108186152,6.87616718,2326.3,2325.7,2.35089087]
[1770108186353,4.5458566,2326.3,2325.7,2.35089087]
[1770108187952,3.51e-06,2326.4,2326.0,0.21513]
[1770108188254,2.546823,2327.0,2326.0,0.21513]
[1770108188751,4.80563077,2326.9,2326.0,0.21513]
[1770108188952,7.35245377,2326.9,2326.0,0.21513]
[1770108189153,7.35720005,2326.9,2326.1,0.21513]
[1770108190651,2.546823,2326.8,2326.1,0.21513]
[1770108192751,7.41925157,2326.7,2326.1,0.21513]
[1770108193056,2.546823,2326.7,2326.1,0.21513]
[1770108195356,0.00474628,2326.9,2326.3,0.21511]
[1770108195654,2.55156928,2326.9,2326.3,0.21837303]
[1770108195858,2.546823,2326.7,2326.3,0.21837303]
[1770108198161,6.28e-06,2326.9,2326.7,2.56596087]
[1770108198358,9.425,2327.8,2326.7,2.56596087]
[1770108198653,4.79818656,2327.3,2326.7,2.56596087]
[1770108199055,25.97968709,2329.1,2326.7,2.56596087]
[1770108199256,9.429986,2327.8,2326.7,2.56596087]
[1770108199451,4.54462025,2327.3,2326.7,2.56596087]
[1770108199656,0.95051447,2327.7,2326.7,2.56596087]
[1770108199862,14.90637784,2329.1,2326.7,0.21507]
[1770108200058,4.54462025,2327.3,2326.7,0.21507]
[1770108200361,2.5370651,2327.3,2326.7,0.21507]
[1770108204957,2.5370651,2327.3,2326.3,2.56421456]
[1770108205162,5.49,2327.6,2326.3,2.56421456]
[1770108205163,2.5370651,2327.1,2326.3,0.00326303]
[1770108205557,2.5370651,2326.9,2326.3,0.00326303]
[1770108206462,2.5370651,2326.9,2326.3,2.30501426]
[1770108208062,2.5370651,2327.5,2326.3,2.52012426]
[1770108208564,7.50371357,2327.5,2326.8,1.72454088]
[1770108208764,2.5370651,2327.4,2326.8,1.72454088]
[1770108209166,7.1291267,2327.3,2326.8,1.72454088]
[1770108209565,0.004986,2327.8,2326.9,2.51681123]
[1770108209761,0.004986,2327.8,2327.0,2.30175123]
[1770108209961,4.5920616,2327.7,2327.0,2.30175123]
[1770108210365,0.22328604,2327.7,2327.1,7.2612952]
[1770108210564,0.004986,2327.8,2327.1,9.56304643]
[1770108210961,0.004986,2327.8,2327.1,9.77807643]
[1770108211166,0.004986,2327.8,2327.2,2.51678123]
[1770108211668,2.5370651,2328.4,2327.7,4.02629211]
[1770108211872,5.14312066,2329.0,2327.8,2.30175123]
[1770108211873,2.5370651,2328.6,2327.8,2.30175123]
[1770108212163,2.5370651,2328.8,2328.1,2.30175123]
[1770108212359,4.94954065,2328.9,2328.1,2.30175123]
[1770108212562,2.54217193,2328.9,2328.1,0.00522003]
[1770108212769,2.54217193,2328.9,2327.5,4.86270276]
[1770108212968,2.5370651,2328.7,2327.5,4.86270276]
[1770108213270,4.63037211,2328.6,2327.7,5.68684095]
[1770108213569,2.5370651,2328.5,2327.5,2.30175123]
[1770108214068,2.5370651,2328.3,2327.6,5.50694034]
[1770108214269,2.5370651,2328.3,2327.5,0.00556122]
[1770108214468,7.16989813,2328.2,2327.5,0.00556122]
[1770108214868,2.5370651,2328.2,2327.5,0.00556122]
[1770108215071,2.5370651,2328.0,2327.0,2.30175123]
[1770108215465,2.5370651,2328.0,2327.2,5.57402253]
[1770108215769,2.5370651,2328.0,2327.1,5.57402253]
[1770108215770,2.5370651,2328.0,2327.1,2.30175123]
[1770108216169,2.5370651,2328.0,2327.1,7.98651782]
[1770108217271,2.5370651,2328.0,2327.1,5.68476659]
[1770108217467,2.5370651,2327.8,2327.1,0.00336625]
[1770108218070,2.5370651,2327.6,2327.1,0.00336625]
[1770108218468,2.5370651,2327.4,2326.5,4.86270276]
[1770108218667,2.5370651,2327.4,2326.5,2.30175123]
[1770108218867,2.5370651,2327.4,2326.7,5.52139561]
[1770108219172,2.5370651,2327.2,2326.5,2.30175123]
[1770108219474,2.54250798,2327.2,2326.5,2.3069966]
[1770108219972,2.54250798,2327.2,2326.5,0.00524537]
[1770108220166,2.5370651,2327.0,2326.5,0.00524537]
[1770108220564,2.5370651,2327.0,2326.3,0.21511]
[1770108221467,2.5370651,2327.0,2326.3,2.52103276]
[1770108221672,2.54250798,2327.2,2326.3,2.52103276]
[1770108222269,2.54250798,2327.2,2326.4,2.51684123]
[1770108222466,0.00544288,2327.2,2326.6,2.30175123]
[1770108223878,0.00544288,2327.2,2326.6,2.51683123]
[1770108224070,0.00544288,2327.2,2326.8,2.30175123]
[1770108224274,2.5370651,2327.5,2326.8,2.30175123]
[1770108224571,2.5370651,2327.7,2326.8,2.30175123]
[1770108225179,2.54125528,2327.7,2326.8,2.30175123]
[1770108225580,0.00419018,2327.7,2327.0,2.30175123]
[1770108226875,0.00419018,2327.7,2327.0,2.51680123]
[1770108227585,2.54125528,2327.7,2327.0,0.21505]
[1770108227983,2.5370651,2327.5,2327.0,0.21505]
[1770108228684,0.00419018,2327.7,2327.0,2.51680123]
[1770108229281,2.54125528,2327.7,2327.0,2.51680123]
[1770108230284,2.54125528,2327.7,2327.0,0.21505]
[1770108230584,2.47454418,2327.5,2327.0,0.21505]
[1770108236884,2.40711955,2327.7,2327.0,2.73134764]
[1770108237282,0.00419018,2327.7,2327.0,2.73134764]
[1770108237488,0.00419018,2327.7,2327.1,2.73132764]
[1770108237686,0.00419018,2327.7,2327.3,2.51629764]
[1770108237883,2.40292937,2328.1,2327.3,2.51629764]
[1770108238382,4.66427575,2328.0,2327.3,2.51629764]
[1770108238690,2.40292937,2328.1,2327.3,2.51629764]
[1770108238888,2.40686803,2328.1,2327.3,2.51629764]
[1770108239582,2.40686803,2328.1,2327.2,0.21502]
[1770108239782,2.40292937,2327.9,2327.2,0.21502]
[1770108240182,2.40292937,2327.7,2327.2,0.21502]
[1770108240391,2.40292937,2327.7,2326.9,2.56095153]
[1770108240592,2.40292937,2327.5,2326.7,2.56095153]
[1770108240985,2.40292937,2327.5,2326.8,2.73135764]
[1770108241290,2.40292937,2327.8,2326.9,2.73134764]
[1770108241691,2.40292937,2327.8,2327.0,5.68074976]
[1770108242292,9.332,2328.0,2326.9,2.73134764]
[1770108242293,2.40292937,2327.6,2326.9,2.73134764]
[1770108243191,2.40292937,2327.6,2326.9,0.21505]
[1770108243689,2.40292937,2327.8,2326.9,2.73134764]
[1770108243992,7.3847608,2327.8,2327.0,2.73133764]
[1770108244189,4.98183143,2327.8,2327.1,2.51629764]
[1770108244486,14.30776904,2328.0,2327.1,2.51629764]
[1770108244791,4.52374448,2327.9,2327.2,2.51629764]
[1770108245189,6.92667385,2327.9,2327.2,2.51629764]
[1770108246287,6.92667385,2327.9,2327.2,2.73132764]
[1770108246790,2.40292937,2328.0,2327.2,2.73132764]
[1770108247093,6.90960128,2328.0,2327.2,0.21503]
[1770108247387,2.40292937,2327.9,2327.2,0.21503]
[1770108247692,2.40686803,2328.1,2327.2,2.73132764]
[1770108248597,2.40686803,2328.1,2327.3,8.31047768]
[1770108248790,2.40686803,2328.1,2327.4,2.51629764]
[1770108249494,0.00393866,2328.1,2327.4,2.73130764]
[1770108249796,0.00393866,2328.1,2327.5,8.07906037]
[1770108250196,0.00393866,2328.1,2327.5,8.29406037]
[1770108250398,5.14312066,2328.5,2327.6,2.51629764]
[1770108250399,2.40292937,2328.5,2327.6,2.51629764]
[1770108250697,2.40292937,2328.3,2327.9,0.21496]
[1770108251396,2.40655166,2328.3,2327.9,0.21496]
[1770108255698,2.40655166,2328.3,2327.6,2.56095153]
[1770108256199,2.40292937,2328.1,2327.3,2.56095153]
[1770108256596,2.40292937,2328.1,2327.3,2.77597153]
[1770108256896,2.40292937,2327.9,2327.3,0.21502]
[1770108257598,2.40292937,2327.9,2327.3,2.77597153]
[1770108258102,2.40292937,2327.9,2327.3,0.21502]
[1770108258297,2.40292937,2327.9,2327.3,2.77597153]
[1770108258993,2.40292937,2328.2,2327.5,2.51629764]
[1770108259394,7.11866021,2328.2,2327.5,2.51629764]
[1770108259998,2.40292937,2328.1,2327.4,0.21501]
[1770108261202,2.40292937,2328.1,2327.5,0.215]
[1770108261402,0.00362229,2328.3,2327.5,2.52617497]
[1770108261701,2.49521371,2328.3,2327.5,2.52617497]
[1770108267302,2.49521371,2328.3,2327.5,5.08167611]
[1770108267905,2.49521371,2328.3,2327.5,2.52617497]
[1770108269808,2.49521371,2328.3,2327.6,0.21499]
[1770108270104,2.49521371,2328.3,2327.8,2.52614497]
[1770108270508,2.49521371,2328.3,2327.8,0.21497]
[1770108271307,2.49521371,2328.3,2327.9,0.21496]
[1770108271506,2.49159142,2328.7,2328.1,0.21494]
[1770108272501,2.49492839,2328.7,2328.1,0.21899714]
[1770108272702,2.49492839,2328.7,2328.1,2.53017211]
[1770108273507,2.49492839,2328.7,2328.1,0.21899714]
[1770108274109,2.49492839,2328.7,2327.9,2.55550114]
[1770108274310,2.49492839,2328.7,2327.8,2.55550114]
[1770108275312,2.49492839,2328.7,2328.1,0.21494]
[1770108276413,2.49159142,2328.5,2328.1,0.21494]
[1770108282820,2.49492839,2328.7,2328.1,2.52611497]
[1770108283221,7.09580462,2328.6,2328.1,4.24931787]
[1770108284424,7.09580462,2328.6,2328.1,0.21494]
[1770108284719,2.49159142,2328.5,2328.1,0.21494]
[1770108285425,2.49159142,2328.5,2328.1,1.9381429]
[1770108286625,0.00333697,2328.7,2328.1,1.9381429]
[1770108286827,2.49492839,2328.7,2328.2,0.21493]
[1770108287017,2.49492839,2328.7,2328.2,2.52610497]
[1770108287323,39.89759388,2329.2,2328.3,2.52610497]
[1770108287526,2.57000873,2329.3,2328.4,0.21492]
[1770108287728,4.80676952,2329.1,2328.4,0.21492]
[1770108287924,14.13376952,2329.2,2328.4,0.21492]
[1770108288127,9.33134197,2329.2,2328.5,0.21491]
[1770108288327,9.33134197,2329.2,2328.5,1.9381129]
[1770108288524,4.96272346,2329.1,2328.5,1.9381129]
[1770108289028,4.96272346,2329.1,2328.5,0.21491]
[1770108289228,2.49159142,2329.0,2328.5,0.21491]
[1770108291426,2.38685479,2328.9,2328.2,2.55550114]
[1770108291626,2.38685479,2328.8,2328.1,2.55550114]
[1770108291928,2.38685479,2328.6,2327.9,2.55550114]
[1770108292128,2.38685479,2328.6,2327.8,2.5610544]
[1770108292327,2.38685479,2328.6,2327.9,0.21496]
[1770108292523,2.38685479,2328.6,2328.0,0.21495]
[1770108293028,2.38685479,2329.0,2328.4,0.21491]
[1770108295531,2.38685479,2329.0,2328.4,2.50711553]
[1770108297632,2.39119676,2329.2,2328.5,2.50710553]
[1770108299637,2.38685479,2329.0,2328.5,0.2149]
[1770108301833,2.38685479,2329.0,2328.1,2.55651885]
[1770108302039,2.38685479,2328.8,2327.8,0.00555326]
[1770108302338,2.38685479,2328.6,2327.8,0.00555326]
[1770108302728,2.38685479,2328.4,2327.8,0.00555326]
[1770108303128,2.38685479,2328.2,2327.9,0.21496]
[1770108303935,2.38685479,2328.2,2327.8,0.00555326]
[1770108304131,2.38685479,2328.2,2327.5,2.38187278]
[1770108304334,2.38685479,2328.2,2326.9,7.69732831]
[1770108304335,2.56999781,2327.9,2326.8,2.54594168]
[1770108304538,9.321,2327.8,2326.8,2.54594168]
[1770108304737,9.321,2327.8,2326.8,8.24880189]
[1770108304738,14.09745004,2327.8,2326.8,8.24880189]
[1770108305031,16.66744785,2327.8,2326.8,8.24880189]
[1770108305236,14.09745004,2327.8,2326.8,8.2524417]
[1770108305539,14.09745004,2327.8,2326.9,2.54594168]
[1770108305936,16.66744785,2327.8,2326.8,0.00363981]
[1770108306131,2.56999781,2327.7,2326.8,0.00363981]
[1770108306339,16.66744785,2327.8,2326.8,0.00363981]
[1770108306639,4.97122529,2327.6,2326.8,0.00363981]
[1770108306839,4.97122529,2327.7,2326.8,0.00363981]
[1770108307137,11.89099781,2327.8,2326.8,0.00363981]
[1770108307337,4.97122529,2327.7,2326.8,0.00363981]
[1770108308435,4.97122529,2327.7,2326.8,2.54958149]
[1770108311741,9.331,2327.9,2326.8,2.54958149]
[1770108311939,4.43723049,2327.8,2327.1,2.54594168]
[1770108312240,4.88536049,2328.3,2327.4,2.76095168]
[1770108312635,7.82226196,2328.6,2327.5,5.61512977]
[1770108312833,2.56999781,2328.5,2327.4,0.21501]
[1770108313034,4.53976103,2328.2,2327.4,0.21501]
[1770108313341,4.53976103,2328.4,2327.4,0.21501]
[1770108313342,2.55760416,2328.4,2327.4,0.21501]
[1770108313540,4.64671644,2328.1,2327.4,0.21501]
[1770108313939,2.55760416,2328.4,2327.4,0.21501]
[1770108314241,4.64671644,2328.0,2327.4,0.21501]
[1770108314442,4.64671644,2328.0,2327.2,2.54594168]
[1770108314742,9.326,2327.9,2326.9,2.54594168]
[1770108314941,14.1617187,2327.9,2326.9,2.54594168]
[1770108315142,12.334,2327.9,2326.8,0.21869981]
[1770108315338,4.8357187,2327.8,2326.8,0.21869981]
[1770108317444,4.8357187,2327.8,2326.8,2.76464149]
[1770108317745,9.328,2327.8,2326.8,2.76464149]
[1770108318245,4.54572348,2327.7,2326.8,2.76464149]
[1770108318641,4.54572348,2327.7,2327.0,2.76098168]
[1770108318945,7.445,2328.0,2327.0,2.76098168]
[1770108319447,4.75622739,2327.9,2327.0,2.76098168]
[1770108322446,4.75622739,2327.9,2327.0,0.21504]
[1770108323249,4.75622739,2327.9,2326.8,0.00363981]
[1770108323647,4.75622739,2327.9,2326.8,2.54810294]
[1770108325849,4.75622739,2327.9,2327.0,2.54446313]
[1770108326549,4.75622739,2327.9,2327.2,2.54446313]
[1770108328143,4.75622739,2327.9,2327.2,2.75948313]
[1770108328348,4.75622739,2327.9,2327.3,0.21502]
[1770108329247,4.75622739,2327.9,2326.8,2.54810294]
[1770108329650,7.31383155,2327.9,2326.8,2.54810294]
[1770108329950,7.31383155,2327.9,2326.8,2.76316294]
[1770108331248,2.55760416,2327.8,2326.8,2.76316294]
[1770108331548,7.14514139,2327.7,2326.8,2.76316294]
[1770108332347,2.55760416,2327.6,2326.8,0.21869981]
[1770108332553,2.55760416,2327.4,2326.6,2.54446313]
[1770108332859,14.16262198,2327.3,2326.4,2.54446313]
[1770108333258,16.72022614,2327.3,2326.4,2.54446313]
[1770108333659,16.72343361,2327.3,2326.4,2.54753198]
[1770108334062,16.72343361,2327.3,2326.6,2.54446313]
[1770108335962,2.55760416,2327.2,2326.5,0.21509]
[1770108336363,4.83291527,2327.1,2326.5,0.21509]
[1770108339666,4.83291527,2327.1,2326.5,2.75955313]
[1770108339967,9.33220747,2327.3,2326.5,2.75955313]
[1770108340368,4.95307226,2327.2,2326.5,2.75955313]
[1770108355476,7.51067642,2327.2,2326.1,2.5450967]
[1770108355677,2.55760416,2327.0,2326.1,2.7602267]
[1770108356171,4.57872407,2326.9,2326.1,2.7602267]
[1770108356372,9.441,2326.8,2325.9,2.5450967]
[1770108356572,9.441,2326.8,2325.9,2.54984678]
[1770108356876,4.48980818,2326.7,2326.1,0.21513]
[1770108357177,4.48980818,2326.7,2325.9,2.54984678]
[1770108357678,2.55760416,2326.9,2325.9,2.54984678]
[1770108357977,4.47292688,2326.8,2325.9,2.54984678]
[1770108358177,12.00160416,2326.9,2326.1,0.21513]
[1770108358374,4.47292688,2326.8,2326.1,0.21513]
[1770108358875,4.47292688,2326.8,2326.1,2.7602267]
[1770108360275,4.47292688,2326.8,2326.1,0.21513]
[1770108361281,9.444,2326.9,2326.1,2.7602267]
[1770108361480,9.444,2326.9,2326.3,2.5450967]
[1770108364977,9.444,2326.9,2326.2,0.21512]
[1770108365481,4.79997481,2326.8,2326.2,0.21512]
[1770108367882,7.35757897,2326.8,2326.2,0.21512]
[1770108368483,4.79997481,2326.8,2326.2,0.21512]
[1770108368682,4.79997481,2326.8,2326.2,2.7602167]
[1770108368883,2.55760416,2327.2,2326.4,2.7601967]
[1770108369184,7.37319186,2327.2,2326.4,2.7601967]
[1770108369484,4.8155877,2327.2,2326.6,2.5450967]
[1770108372986,3.01220747,2327.3,2326.6,2.5450967]
[1770108374078,3.01220747,2327.3,2326.8,2.5450967]
[1770108374279,2.55760416,2327.5,2326.8,2.5450967]
[1770108374687,4.91936474,2327.4,2326.8,2.5450967]
[1770108375190,4.92365231,2327.4,2326.8,2.5450967]
[1770108376690,2.55760416,2328.0,2327.2,2.32462987]
[1770108376888,4.95212753,2328.0,2327.2,2.32462987]
[1770108377089,4.98846055,2327.9,2327.2,2.53965987]
[1770108377285,2.55760416,2328.1,2327.2,2.53965987]
[1770108377590,0.00357447,2328.1,2327.4,2.53963987]
[1770108378388,2.39809784,2328.1,2327.4,2.53963987]
[1770108378991,0.00357447,2328.1,2327.4,2.53963987]
[1770108381299,0.00357447,2328.1,2327.6,2.37265197]
[1770108381593,0.00357447,2328.1,2327.6,2.37702196]
[1770108385700,0.00357447,2328.1,2327.8,2.37265197]
[1770108385999,21.83629125,2328.7,2327.8,2.58762197]
[1770108386296,4.77202464,2328.6,2327.8,2.58762197]
[1770108386791,4.77683123,2328.6,2327.8,2.58762197]
[1770108387296,0.00480659,2328.6,2328.0,2.37265197]
[1770108387490,4.04,2329.0,2328.0,2.37265197]
[1770108387491,4.04,2329.0,2328.0,2.58760197]
[1770108387695,4.04,2329.0,2328.2,2.37265197]
[1770108387895,4.68855302,2328.9,2328.2,2.37265197]
[1770108388498,4.69276527,2328.9,2328.2,2.37265197]
[1770108390499,0.00421225,2328.9,2328.4,2.37265197]
[1770108391302,0.00421225,2328.9,2327.6,3.84758016]
[1770108391303,2.4995035,2328.9,2328.2,0.21493]
[1770108391901,2.4995035,2328.9,2327.8,2.37265197]
[1770108391902,2.49529125,2328.7,2327.8,2.37265197]
[1770108392202,2.49529125,2328.7,2328.0,5.67984453]
[1770108393098,2.49529125,2328.7,2327.7,0.21498]
[1770108393304,2.49529125,2328.5,2327.7,2.58763197]
[1770108393604,4.79676975,2328.4,2327.7,2.58763197]
[1770108394505,7.292061,2328.4,2327.7,2.58763197]
[1770108394704,4.79676975,2328.4,2327.9,2.37265197]
[1770108394904,2.4995035,2328.9,2327.9,2.37265197]
[1770108395303,7.38980033,2328.8,2327.9,2.37265197]
[1770108396205,2.49529125,2328.7,2327.9,2.37265197]
[1770108396704,4.54520977,2328.6,2327.9,2.37265197]
[1770108398407,7.04050102,2328.6,2327.9,2.37265197]
[1770108398609,2.49529125,2328.5,2327.7,2.58763197]
[1770108398810,2.49529125,2328.5,2327.7,0.21498]
[1770108399804,2.49529125,2328.3,2327.7,0.21498]
[1770108400209,7.47172055,2328.2,2327.7,0.21498]
[1770108400408,7.47172055,2328.2,2327.7,2.58763197]
[1770108400609,2.49529125,2328.2,2327.7,2.58763197]
[1770108401104,2.49529125,2328.2,2327.7,0.21498]
[1770108401611,2.49529125,2328.4,2327.7,2.58763197]
[1770108401903,7.38530739,2328.7,2327.7,2.58763197]
[1770108402209,2.49529125,2328.7,2327.7,2.58763197]
[1770108402405,4.89001614,2328.8,2327.9,2.37265197]
[1770108402610,2.56181641,2328.9,2327.9,2.37265197]
[1770108402611,4.89001614,2328.6,2327.9,2.37265197]
[1770108402910,7.02585438,2328.8,2327.9,2.37265197]
[1770108403110,2.49529125,2328.8,2327.9,2.37265197]
[1770108403312,4.53056313,2328.7,2328.0,2.58760197]
[1770108404110,7.02585438,2328.7,2328.0,2.58760197]
[1770108404409,2.49529125,2328.7,2328.0,2.58760197]
[1770108404806,4.7154687,2328.6,2328.0,2.58760197]
[1770108407210,2.49529125,2328.5,2328.0,0.21495]
[1770108408914,2.49529125,2328.3,2328.0,0.21495]
[1770108409715,2.49529125,2328.7,2328.0,0.21495]
[1770108410216,2.49529125,2328.6,2328.0,0.21495]
[1770108410612,2.55760416,2328.8,2328.0,0.21495]
[1770108410613,2.43694606,2328.4,2328.0,0.21495]
[1770108412018,2.41899321,2328.7,2328.0,2.68949835]
[1770108412214,2.56181641,2328.9,2328.2,2.68947835]
[1770108412422,0.00421225,2328.9,2328.2,2.68947835]
[1770108413417,0.00421225,2328.9,2328.6,2.47454835]
[1770108413621,4.97659737,2329.3,2328.6,2.47454835]
[1770108414022,4.6732382,2329.2,2328.6,2.47454835]
[1770108414621,4.6767271,2329.2,2328.6,2.47454835]
[1770108415119,4.6767271,2329.2,2328.6,2.68944835]
[1770108415325,0.0034889,2329.2,2328.8,2.47454835]
[1770108416423,0.0034889,2329.2,2328.6,0.2149]
[1770108416724,2.42248211,2329.2,2328.7,5.65195631]
[1770108417025,0.0034889,2329.2,2328.7,8.12650466]
[1770108417328,0.0034889,2329.2,2328.8,2.47454835]
[1770108417522,2.41899321,2329.4,2328.7,5.65195631]
[1770108417825,4.82053136,2329.3,2328.6,2.68944835]
[1770108418018,7.23952457,2329.3,2328.6,2.68944835]
[1770108418217,7.23952457,2329.3,2328.7,5.65322691]
[1770108418526,2.42226907,2329.3,2328.7,5.65322691]
[1770108418721,4.82053136,2329.2,2328.7,8.12777526]
[1770108419328,0.00327586,2329.3,2328.8,2.47454835]
[1770108419728,0.00327586,2329.3,2329.0,2.47454835]
[1770108420328,0.00327586,2329.3,2328.9,2.47454835]
[1770108420627,0.00327586,2329.3,2328.2,5.12002611]
[1770108420628,2.42226907,2329.3,2328.2,4.05814017]
[1770108420824,2.41899321,2329.0,2328.2,0.21493]
[1770108421128,4.88391439,2328.9,2328.2,0.21493]
[1770108421328,2.41899321,2328.8,2327.7,6.31775852]
[1770108421625,2.41899321,2328.8,2327.6,0.21935999]
[1770108421626,2.41899321,2328.6,2327.6,0.21935999]
[1770108421829,4.97659737,2328.4,2327.6,0.21935999]
[1770108422027,2.41899321,2328.2,2327.6,0.21935999]
[1770108422226,2.41899321,2328.2,2327.6,0.21499]
[1770108422430,2.41899321,2328.0,2327.3,2.47454835]
[1770108422627,2.41899321,2328.0,2327.1,6.31775852]
[1770108422826,4.52917259,2327.9,2327.1,6.31775852]
[1770108423030,4.52917259,2327.9,2327.2,5.64259315]
[1770108423229,4.52917259,2327.9,2327.2,5.64768567]
[1770108425229,4.52917259,2327.9,2327.2,8.12223402]
[1770108425825,2.41899321,2327.8,2327.2,5.64768567]
[1770108426029,2.41899321,2327.8,2327.0,0.21505]
[1770108426231,7.06746394,2327.7,2327.0,0.21505]
[1770108426629,2.41899321,2327.7,2327.0,0.21505]
[1770108426828,4.79523291,2327.6,2327.0,0.21505]
[1770108427230,4.79977858,2327.6,2327.0,0.21989018]
[1770108427930,4.79977858,2327.6,2327.0,2.69443853]
[1770108428331,2.41899321,2328.2,2327.2,2.68956835]
[1770108428531,9.57,2328.3,2327.4,2.68955835]
[1770108428733,9.57,2328.3,2327.6,2.47454835]
[1770108428933,4.76104684,2328.2,2327.6,2.68953835]
[1770108429333,4.7657187,2328.2,2327.6,2.68953835]
[1770108429830,0.00467186,2328.2,2327.7,5.62800165]
[1770108430032,0.00467186,2328.2,2327.8,2.47454835]
[1770108430433,3.007,2328.6,2327.8,2.47454835]
[1770108430631,5.42599321,2328.6,2327.8,2.47454835]
[1770108430932,4.67165827,2328.5,2327.8,2.47454835]
[1770108431333,4.67556521,2328.5,2327.8,2.47454835]
[1770108437135,4.67556521,2328.5,2328.0,2.47454835]
[1770108437335,0.00390694,2328.5,2328.0,2.47454835]
[1770108438236,2.42290015,2328.5,2327.9,0.21496]
[1770108438437,0.00390694,2328.5,2327.9,2.68950835]
[1770108439733,0.00390694,2328.5,2327.3,0.21502]
[1770108439734,2.41899321,2328.3,2327.3,0.21502]
[1770108439940,2.41899321,2328.1,2327.0,0.00484018]
[1770108440433,2.47069693,2327.9,2327.0,0.00484018]
[1770108440839,6.99539169,2327.8,2327.0,0.00484018]
[1770108441040,4.52469476,2327.8,2327.0,2.46374797]
[1770108441337,4.56864525,2327.9,2327.3,2.67392779]
[1770108441544,2.47069693,2328.3,2327.3,2.67392779]
[1770108441744,4.56864525,2328.2,2327.3,2.67392779]
[1770108441945,2.47069693,2328.3,2327.3,2.67392779]
[1770108442137,9.586,2328.4,2327.5,2.45890779]
[1770108442342,2.47069693,2328.3,2327.4,5.80687365]
[1770108442640,2.47069693,2328.1,2327.4,2.67390779]
[1770108443040,4.5287859,2328.0,2327.4,2.67390779]
[1770108443236,2.47069693,2327.9,2327.0,0.00484018]
[1770108443642,6.99948283,2327.8,2327.0,0.00484018]
[1770108444041,2.47069693,2327.8,2327.0,0.00484018]
[1770108444341,4.64944601,2327.7,2327.0,0.00484018]
[1770108444538,4.64944601,2327.7,2327.0,2.46374797]
[1770108444846,2.47069693,2328.1,2327.2,2.45890779]
[1770108445247,4.53770918,2328.0,2327.4,2.45890779]
[1770108445443,12.05669693,2328.4,2327.4,2.45890779]
[1770108445641,7.00840611,2328.3,2327.4,2.45890779]
[1770108445839,2.47069693,2328.2,2327.4,2.45890779]
[1770108446247,4.62009166,2328.2,2327.4,2.67391779]
[1770108446647,12.05669693,2328.4,2327.4,2.67391779]
[1770108446846,4.62009166,2328.3,2327.4,2.67391779]
[1770108447044,12.05669693,2328.4,2327.4,2.67391779]
[1770108447245,2.47069693,2328.3,2327.4,2.67391779]
[1770108447446,7.16868347,2328.3,2327.4,2.67391779]
[1770108450751,9.72628763,2328.3,2327.4,2.67391779]
[1770108450953,7.16868347,2328.3,2327.4,2.67391779]
[1770108451551,9.72628763,2328.3,2327.4,2.67391779]
[1770108452447,4.69798654,2328.3,2327.6,2.45890779]
[1770108452848,4.69798654,2328.3,2327.8,2.45890779]
[1770108453044,0.00390694,2328.5,2328.0,2.45890779]
[1770108453647,0.00390694,2328.5,2327.5,3.84321017]
[1770108453648,2.47460387,2328.5,2327.5,3.84321017]
[1770108453845,2.47069693,2328.3,2327.4,2.45890779]